Cogmind - Beta 10.2 @@@ ROGUE MODE // 2021.01.05 @ 17:33:54 Player: CrossedViper Result: Destroyed by Striker with Compact Linear Accelerator Performance ------------- Evolutions (9) 4500 Regions Visited (18) 3600 Robots Destroyed (280) 1400 Value Destroyed (12805) 12805 Prototype IDs (18) 360 Alien Tech Used (0) 0 Bonus (4535) 4535 TOTAL SCORE: 27200 Bonus ------- High Alert Combat Kills 3119 Follower Combat Kills 1576 Entered Garrisons 200 Network Hubs Disabled 200 Built Enhanced Grunts 300 Met R17 at Cetus 500 Met R17 at Research 2000 Friendly Fire -3360 Cogmind --------- Core Integrity 0/1600 Matter 57/300 Energy 99/100 System Corruption 8% Temperature Cool (0) Movement Core (50) Location -1/Command Parts ------- > --- POWER (3) -------- (None) > --- PROPULSION (4) --- (None) > --- UTILITY (15) ----- Armor Integrity Analyzer Advanced System Shield > --- WEAPON (3) ------- (None) > --- INVENTORY (4) ---- Quantum Capacitor Quantum Capacitor Peak State ------------ > --- POWER ------------ Light Antimatter Reactor Light Particle Reactor > --- PROPULSION ------- Advanced Heavy Treads Centrium Heavy Treads > --- UTILITY ---------- Advanced Cooling System Large Storage Unit Large Storage Unit Large Storage Unit High-capacity Storage Unit High-capacity Storage Unit Advanced Terrain Scan Processor Experimental Targeting Computer Improved Target Analyzer Armor Integrity Analyzer Centrium Medium Armor Plating Medium Regenerative Plating Advanced Hacking Suite Advanced System Shield > --- WEAPON ----------- HERF Cannon Improved KE Penetrator Gamma Bomb Array > --- INVENTORY -------- Micro Fission Core Centrium Heavy Treads Centrium Heavy Treads Centrium Heavy Treads Biometal Heavy Treads Advanced Cooling System Advanced Cooling System Advanced Energy Well Long-range Terrain Scanner Quantum Capacitor Quantum Capacitor Quantum Capacitor Centrium Medium Armor Plating Centrium Medium Armor Plating Heavy Insulated Plating Advanced Thermal Shield Hacking Suite System Shield Dynamic Insulation System Heavy Machine Gun Railgun Railgun Improved KE Penetrator Improved KE Penetrator [Rating: 150] Favorites ----------- Power Light Antimatter Reactor Engine Cooled Ion Engine Power Core Micro Fission Core Reactor Light Antimatter Reactor Propulsion Light Treads Treads Light Treads Leg Flexi-carbon Leg Wheel Compact Wheel Hover Unit Antigrav System Flight Unit Field Propulsion Drive Utility Large Storage Unit Device Advanced Cooling System Storage Large Storage Unit Processor Experimental Targeting Computer Hackware Advanced System Shield Protection Hardened Heavy Armor Plating Weapon Advanced Beam Cannon Energy Gun Improved Lightning Gun Energy Cannon Advanced Beam Cannon Ballistic Gun Improved KE Penetrator Ballistic Cannon Mass Driver Launcher Rocket Launcher Special Weapon Plasma Cutter Build | -11 -10 -9 -9 -8 -7 -6 -5 -4 -4 -4 -4 -4 -4 -4 -3 -2 -1 -1 ------- Run | Scr Mat Mat Sto Mat Fac Fac Fac Fac Gar Fac Ext Cet Arc Hub Res Res Acc Com Slots Evolved 18 | . . 2 . 2 2 2 2 2 . . . . . . 2 2 2 . Power 2 | . . . . . . 1 . . . . . . . . . . 1 . Propulsion 2 | . . . . . 1 . . 1 . . . . . . . . . . Utility 13 | . . 1 . 2 1 1 2 1 . . . . . . 2 2 1 . Weapon 1 | . . 1 . . . . . . . . . . . . . . . . Parts Attached 267 | . 3 17 16 5 16 15 51 10 27 10 19 12 . 5 8 41 3 9 Power 28 | . . 2 2 . . 3 6 3 3 1 2 1 . . . 4 . 1 Engine 11 | . . 2 2 . . 2 3 1 . . . . . . . . . 1 Core 9 | . . . . . . 1 3 . 1 1 2 . . . . 1 . . Reactor 8 | . . . . . . . . 2 2 . . 1 . . . 3 . . Propulsion 60 | . 3 4 4 1 4 . 13 1 6 1 8 1 . . . 7 2 5 Treads 43 | . 1 4 4 1 4 . 4 . 4 1 8 1 . . . 7 2 2 Leg 3 | . . . . . . . 1 . 2 . . . . . . . . . Wheel 10 | . 2 . . . . . 7 1 . . . . . . . . . . Hover 1 | . . . . . . . 1 . . . . . . . . . . . Flight 3 | . . . . . . . . . . . . . . . . . . 3 Utility 95 | . . 4 2 3 4 7 17 4 10 5 5 5 . 4 4 18 . 3 Device 34 | . . 1 . 1 2 4 5 2 6 3 1 . . . 2 6 . 1 Storage 8 | . . 2 . . . 2 . . . . 1 1 . 1 . 1 . . Processor 8 | . . . . 1 . 1 2 . . . 2 . . . . 1 . 1 Hackware 7 | . . . . . . . . . . 1 . . . 1 2 2 . 1 Protection 38 | . . 1 2 1 2 . 10 2 4 1 1 4 . 2 . 8 . . Artifact . | . . . . . . . . . . . . . . . . . . . Weapon 84 | . . 7 8 1 8 5 15 2 8 3 4 5 . 1 4 12 1 . Energy Gun 27 | . . 1 2 . 5 2 5 1 3 3 3 1 . . . 1 . . Energy Cannon 24 | . . 3 2 1 3 2 7 . . . . 1 . . 3 1 1 . Ballistic Gun 22 | . . 2 2 . . . 2 1 3 . . 2 . 1 1 8 . . Ballistic Cannon 1 | . . . . . . . . . 1 . . . . . . . . . Launcher 7 | . . 1 2 . . 1 1 . . . . . . . . 2 . . Special Weapon 3 | . . . . . . . . . 1 . 1 1 . . . . . . Impact Weapon . | . . . . . . . . . . . . . . . . . . . Slashing Weapon . | . . . . . . . . . . . . . . . . . . . Piercing Weapon . | . . . . . . . . . . . . . . . . . . . Special Melee Weapon . | . . . . . . . . . . . . . . . . . . . Unidentified Prototypes 11 | . . 1 4 1 . . . . . . . 4 . 1 . . . . Parts Lost 98 | . . 2 . . . . 26 3 12 1 4 . . . 2 37 5 6 Power 13 | . . . . . . . 4 2 2 . . . . . . 4 . 1 Propulsion 22 | . . . . . . . 7 . 2 . 1 . . . . 7 2 3 Utility 30 | . . . . . . . 5 . 3 1 1 . . . 1 14 3 2 Weapon 33 | . . 2 . . . . 10 1 5 . 2 . . . 1 12 . . Highest Loss Streak 16 | . . 1 . . . . 7 2 9 1 1 . . . 2 16 3 4 Average Slot Usage (%) 88 | . 85 93 99 96 95 92 83 90 90 93 92 86 89 89 88 84 27 13 Engine 4 | . 14 11 11 9 7 6 4 4 . . . . . . . . . . Core 3 | . . . . . . 5 5 . 3 7 10 6 5 5 4 1 . . Reactor 1 | . . . . . . . . 4 6 2 . 3 5 5 4 5 . . Treads 14 | . 11 21 22 18 23 20 8 5 13 17 19 10 10 10 9 7 5 . Wheel 1 | . 9 . . . . . 3 10 . . . . . . . . . . Device 7 | . . 7 . 2 10 10 10 14 12 7 10 5 5 5 8 6 2 3 Storage 16 | . 14 13 22 18 15 13 17 15 15 15 15 16 21 21 19 20 . . Processor 8 | . . . . 7 7 8 7 10 10 10 12 15 15 15 14 16 10 4 Hackware 2 | . . . . . . . . . . 3 5 5 5 5 12 7 7 1 Protection 6 | . . 6 11 14 7 6 8 10 8 9 2 4 5 5 1 4 . . Energy Gun 6 | . 14 10 7 9 11 8 3 9 3 5 12 3 . . . . . . Energy Cannon 4 | . . 12 7 7 3 6 4 . . . . 5 5 4 5 1 . . Ballistic Gun 6 | . 14 6 11 9 7 . 2 4 11 9 1 4 10 10 6 7 . . Launcher 1 | . . 3 6 1 . 2 2 . . . . . . . . . . . Naked Turns . | . . . . . . . . . . . . . . . . . . . Heaviest Build 179 | 10 10 52 59 66 74 118 121 120 123 125 119 154 154 154 151 179 19 5 Greatest Support 160 | 20 20 40 40 40 62 62 70 70 130 106 121 155 155 155 155 160 105 9 Greatest Overweight (x) 28 | . . 1 1 1 1 1 28 4 2 1 1 1 . . . 2 . . Average Overweight (x) . | . . . 1 1 . 1 2 3 . 1 . . . . . . . . Largest Inventory Capacity 38 | . 6 16 16 16 16 24 24 24 24 24 24 30 30 30 30 38 4 4 Average Capacity 21 | . 6 9 16 16 16 17 24 24 24 24 24 25 30 30 30 36 4 4 Most Carried 35 | . 6 16 16 16 16 21 24 24 24 24 24 30 30 30 30 35 4 4 Average Carried 18 | . 5 8 15 15 15 17 16 13 23 23 23 24 30 29 29 29 4 4 Final Capacity 30 | 6 6 16 16 16 16 24 24 24 24 24 24 30 30 30 30 4 4 4 Final Carried 30 | 6 6 15 16 16 16 21 7 24 24 23 24 30 30 30 30 4 4 4 Class Distribution -------------------- 35% | Scavenger-Gunner 17% | Mutant 16% | Scavenger-Mutant 8% | Gunner 6% | Hauler-Mutant 5% | Tank 3% | Hauler-Tank 3% | Hacker-Mutant Dominant Class ---------------- Mutant | -10/Materials Gunner | -9/Materials Mutant | -9/Storage Tank | -8/Materials Gunner | -7/Factory Mutant | -6/Factory Hauler-Mutant | -5/Factory Scavenger-Gunner | -4/Factory Scavenger-Gunner | -4/Garrison Scavenger-Gunner | -4/Factory Scavenger-Gunner | -4/Extension Scavenger-Mutant | -4/Cetus Scavenger-Gunner | -4/Archives Scavenger-Gunner | -4/Hub_04(d) Scavenger-Gunner | -3/Research Scavenger-Gunner | -2/Research Hacker-Mutant | -1/Access Mutant | -1/Command Resources | -11 -10 -9 -9 -8 -7 -6 -5 -4 -4 -4 -4 -4 -4 -4 -3 -2 -1 -1 ----------- Run | Scr Mat Mat Sto Mat Fac Fac Fac Fac Gar Fac Ext Cet Arc Hub Res Res Acc Com Matter Collected 4952 | 186 55 299 387 59 228 157 830 241 594 177 242 206 40 80 264 907 . . Remotely . | . . . . . . . . . . . . . . . . . . . Salvage Created 15595 | . 63 1387 1070 203 488 743 2331 761 837 418 1185 750 105 250 1259 3745 . . Parts 718 | . 8 81 76 11 25 50 91 39 39 23 42 34 4 6 45 144 . . Haulers Intercepted 8 | . . 4 4 . . . . . . . . . . . . . . . Recyclers Shooed 17 | . . 3 . . . . 10 2 . . . . . . 1 . 1 . Parts Field Recycled . | . . . . . . . . . . . . . . . . . . . Retrieved Matter . | . . . . . . . . . . . . . . . . . . . Parts Self-Destructed . | . . . . . . . . . . . . . . . . . . . Prevented . | . . . . . . . . . . . . . . . . . . . Kills | -11 -10 -9 -9 -8 -7 -6 -5 -4 -4 -4 -4 -4 -4 -4 -3 -2 -1 -1 ------- Run | Scr Mat Mat Sto Mat Fac Fac Fac Fac Gar Fac Ext Cet Arc Hub Res Res Acc Com Combat Hostiles Destroyed 214 | . 3 23 22 3 7 16 32 7 17 4 13 8 1 . 14 44 . . Melee 1 | . . . . . . . . . . . . . . . . 1 . . Guns 100 | . 3 6 5 1 2 1 12 4 16 4 13 2 1 . 6 24 . . Cannons 55 | . . 12 10 2 3 5 10 . 1 . . 1 . . 5 6 . . AOE 36 | . . 5 7 . 2 9 8 . . . . . . . . 5 . . Classes Destroyed 17 | . 2 6 1 . 3 1 . . 2 . 1 . . . . 1 . . Worker 14 | . 1 . 1 . . 2 7 . . 1 . . . . . 2 . . Builder 9 | . . . 1 . . . 6 1 . . . . . 1 . . . . Tunneler 2 | . . . . . 1 . 1 . . . . . . . . . . . Hauler 8 | . . 4 4 . . . . . . . . . . . . . . . Recycler 15 | . . 3 1 . 1 1 4 1 . 1 . . . . 1 2 . . Operator 5 | . . 2 1 . 1 . . . . . . . . . . 1 . . Watcher 7 | . . . . . 1 . . 1 . . 1 1 . 2 . 1 . . Swarmer 42 | . 3 3 7 . . 7 4 . 8 . 1 . . . . 9 . . Grunt 87 | . . 13 6 3 4 2 15 4 4 . 7 2 . . 8 19 . . Brawler 5 | . . 1 . . . . 2 . . . 1 1 . . . . . . Duelist 3 | . . . . . . . . . . . 1 . . . 1 1 . . Protector 2 | . . . . . . . . . . . . . . . . 2 . . Sentry 31 | . . 6 9 1 1 . 1 2 1 2 1 . 1 . 2 4 . . Specialist 1 | . . . . . . . . . 1 . . . . . . . . . Hunter 23 | . . . . . . 6 5 1 2 . 1 . . . 3 5 . . Programmer 14 | . . . . . 2 1 5 . . 2 . . . . . 4 . . Behemoth 2 | . . . . . . . . . 1 . 1 . . . . . . . Cetus Guard 5 | . . . . . . . . . . . . 5 . . . . . . Enhanced Grunt 1 | . . . . . . . . . . . . . . 1 . . . . Thug 1 | . . . . . . . . . . . 1 . . . . . . . Savage 1 | . . . . . . . . . . . . . . 1 . . . . Guerrilla 1 | . . . . . . . . . . . 1 . . . . . . . Best Kill Streak 16 | . 3 8 6 2 3 4 9 3 5 2 3 5 1 1 4 16 . . Combat Bots Only 14 | . 3 7 5 2 2 4 6 2 5 2 3 5 1 . 4 14 . . Max Kills in Single Turn 6 | . 1 2 3 1 2 4 5 1 2 1 1 2 1 3 2 6 . . Gunslinging 1 | . . . . . . . . . 1 . . . . . . . . . Exploded 4 | . . 2 3 . 2 3 3 . . . . . . . . 4 . . Melee 1 | . . . . . . . . . . . . . . . . 1 . . Uniques/NPCs Destroyed 1 | . . . . . . . . . . . . 1 . . . . . . A7 (-4/Cetus) Combat | -11 -10 -9 -9 -8 -7 -6 -5 -4 -4 -4 -4 -4 -4 -4 -3 -2 -1 -1 -------- Run | Scr Mat Mat Sto Mat Fac Fac Fac Fac Gar Fac Ext Cet Arc Hub Res Res Acc Com Damage Taken 30698 | . 177 699 621 275 260 911 5460 1114 1965 504 1205 124 111 175 905 13221 1418 1553 Core 4339 | . 30 78 25 30 31 72 660 127 83 66 66 . . . 98 1368 464 1141 Absorbed by Shields 329 | . . . 10 . . . . . . . 246 73 . . . . . . Reduced by Siege Mode 590 | . . . . . . . . 21 99 . . . . . 42 428 . . Core Remaining (%) 74 | 100 88 . 74 94 95 91 34 . . . . . . 70 92 5 . . Volleys Fired 673 | . 15 63 57 8 23 22 148 44 42 12 55 34 5 11 28 106 . . Largest 3 | . 2 3 3 3 3 3 3 3 3 3 3 3 3 3 3 3 . . Hottest 281 | . 60 176 151 151 159 196 281 160 135 209 264 188 158 158 197 210 . . Shots Fired 1505 | . 30 150 115 22 69 50 262 88 123 36 141 55 15 23 74 252 . . Gun 1059 | . 30 76 59 14 45 27 115 88 120 36 131 32 10 18 38 220 . . Cannon 389 | . . 69 50 7 24 19 133 . 3 . . 13 5 5 36 25 . . Launcher 37 | . . 5 6 1 . 4 14 . . . . . . . . 7 . . Special 20 | . . . . . . . . . . . 10 10 . . . . . . Kinetic 618 | . 15 28 51 7 23 5 52 24 90 23 15 19 10 18 38 200 . . Thermal 493 | . . 69 50 7 24 19 149 . 24 5 116 10 . . . 20 . . Explosive 30 | . . 5 6 1 . 4 14 . . . . . . . . . . . Electromagnetic 364 | . 15 48 8 7 22 22 47 64 9 8 10 26 5 5 36 32 . . Robot Hit Streak 59 | . 5 14 9 8 14 16 22 19 21 33 50 59 19 11 15 32 . . Robot Miss Streak 5 | . 5 5 3 2 3 3 5 2 3 . 1 3 1 1 2 2 . . Penetration Max 2 | . . . . . . . 1 1 2 1 1 1 . 1 1 1 . . Secondary Targets 16 | . . . . . . . 2 . 4 . 5 . . . . 5 . . Max Gunslinging Chain 2 | . . . . . . . 1 . 2 . 1 . . . . 1 . . Shots Hit Robots 1098 | . 13 84 58 14 45 38 194 73 98 28 128 50 14 12 59 190 . . Core Hits 574 | . 4 47 35 6 18 26 91 32 33 13 50 21 8 10 29 147 2 2 Critical Hits 117 | . . 3 9 . 1 5 19 4 11 1 5 9 2 2 14 32 . . Critical Kills 48 | . . 2 6 . . 3 8 . 6 1 1 2 1 . 7 11 . . Critical Parts Destroyed 61 | . . 1 3 . 1 2 9 4 3 . 4 6 1 1 7 19 . . Melee Attacks . | . . . . . . . . . . . . . . . . . . . Impact . | . . . . . . . . . . . . . . . . . . . Slashing . | . . . . . . . . . . . . . . . . . . . Piercing . | . . . . . . . . . . . . . . . . . . . Sneak Attacks . | . . . . . . . . . . . . . . . . . . . Combat Hostiles . | . . . . . . . . . . . . . . . . . . . Follow-up Attacks . | . . . . . . . . . . . . . . . . . . . Damage Inflicted 33017 | . 122 1671 1752 354 1223 1685 5959 1533 2277 724 3175 1859 389 714 2081 7459 27 13 Guns 18749 | . 122 572 501 245 621 606 2254 1433 2173 724 3074 843 231 235 1010 4105 . . Cannons 7106 | . . 673 737 104 462 336 1992 . 104 . . 399 158 199 1071 871 . . Explosions 6718 | . . 402 514 . 140 743 1677 89 . . . 517 . 277 . 2359 . . Melee . | . . . . . . . . . . . . . . . . . . . Ramming 247 | . . 24 . 5 . . 36 11 . . 4 . . 3 . 124 27 13 Kinetic 10337 | . 17 120 313 47 153 48 876 407 1691 420 323 562 231 235 1010 3884 . . Thermal 10790 | . . 770 737 104 602 595 3162 89 424 151 2591 617 . . . 948 . . Explosive 2158 | . . 305 514 . . 484 855 . . . . . . . . . . . Electromagnetic 9485 | . 105 452 188 198 468 558 1030 1026 162 153 257 680 158 476 1071 2503 . . Impact . | . . . . . . . . . . . . . . . . . . . Slashing . | . . . . . . . . . . . . . . . . . . . Piercing . | . . . . . . . . . . . . . . . . . . . Highest Corruption 14 | . 2 . 2 . 2 3 10 . . . . . . 1 . 14 1 8 Average Corruption 3 | . 2 . 2 . 1 2 6 . . . . . . 1 . 4 1 4 Corruption Purged . | . . . . . . . . . . . . . . . . . . . Effects 106 | . 1 . 18 . 7 13 39 . . . . . . . . 23 2 3 Message Errors 23 | . . . 5 . 3 3 7 . . . . . . . . 3 2 . Matter Fused 10 | . . . . . . 3 4 . . . . . . . . 1 . 2 Heat Flow Errors 11 | . . . 5 . . 2 . . . . . . . . . 3 . 1 Energy Discharges 17 | . 1 . 4 . . 3 7 . . . . . . . . 2 . . Parts Rejected 2 | . . . . . . . 1 . . . . . . . . 1 . . Data Loss (minor) 9 | . . . 2 . 2 2 . . . . . . . . . 3 . . Data Loss (major) 4 | . . . . . . . 2 . . . . . . . . 2 . . Misfires 4 | . . . . . . . 4 . . . . . . . . . . . Alerts 2 | . . . . . . . 1 . . . . . . . . 1 . . Misdirections 1 | . . . . . . . 1 . . . . . . . . . . . Targeting Errors 23 | . . . 2 . 2 . 12 . . . . . . . . 7 . . Overload Shots 1 | . . . . . . . 1 . . . . . . . . . . . Overflow Damage 416 | . . 4 28 . 64 1 88 21 . . . 35 . 25 32 118 . . Projectiles 106 | . . 3 . . 32 1 21 . . . . . . 11 32 6 . . Explosions 310 | . . 1 28 . 32 . 67 21 . . . 35 . 14 . 112 . . Melee . | . . . . . . . . . . . . . . . . . . . Knockbacks 1 | . . . . . . . 1 . . . . . . . . . . . Impact 1 | . . . . . . . 1 . . . . . . . . . . . Kinetic . | . . . . . . . . . . . . . . . . . . . Secondary . | . . . . . . . . . . . . . . . . . . . Self-Inflicted Damage 644 | . . 65 56 . . . 387 21 . . . . . 89 . 8 12 6 Shots 18 | . . 2 3 . . . 10 1 . . . . . 1 . 1 . . Rammed 33 | . . 7 1 1 . . 6 1 . . 1 . . 1 . 7 5 3 Targets Rammed 33 | . . 7 1 1 . . 6 1 . . 1 . . 1 . 7 5 3 Kicked . | . . . . . . . . . . . . . . . . . . . Crushed . | . . . . . . . . . . . . . . . . . . . Highest Temperature 422 | . 60 310 293 389 278 300 422 66 15 66 325 177 39 30 367 205 . 177 Average Temperature 104 | . 28 92 80 154 78 138 151 20 5 12 61 50 18 13 111 66 . 99 Received Heat Transfer 3063 | . 15 234 171 114 51 18 783 171 177 90 193 23 9 . 159 783 45 27 Effects 28 | . . 1 2 1 . 3 20 . . . . . . . 1 . . . Shutdowns 7 | . . . . . . . 6 . . . . . . . 1 . . . Energy Bleed 6 | . . . . 1 . 1 4 . . . . . . . . . . . Interference 4 | . . . 2 . . 2 . . . . . . . . . . . . Matter Decay 3 | . . 1 . . . . 2 . . . . . . . . . . . Short Circuit 1 | . . . . . . . 1 . . . . . . . . . . . Damage (minor) 1 | . . . . . . . 1 . . . . . . . . . . . Damage (major) 6 | . . . . . . . 6 . . . . . . . . . . . Siege Activations 23 | . . . . . . . 1 3 4 . . 1 . . 4 10 . . Total Turns 481 | . . . . . . . 5 60 123 . . 22 . . 54 217 . . Longest Duration 58 | . . . . . . . 5 23 58 . . 22 . . 24 34 . . Robots Corrupted 23 | . . . . . . 1 2 3 . . . 5 . 1 3 8 . . Combat Hostiles 21 | . . . . . . 1 1 3 . . . 5 . . 3 8 . . Parts Fried 66 | . . . . . 3 3 5 7 1 1 1 4 . 4 14 23 . . Impact Corruptions . | . . . . . . . . . . . . . . . . . . . Robots Melted 1 | . . . . . . . 1 . . . . . . . . . . . Combat Hostiles 1 | . . . . . . . 1 . . . . . . . . . . . Parts Melted 27 | . . 4 3 . . . 8 . 2 . 8 1 . . . 1 . . Heat Transferred 15326 | . . 1271 1221 185 853 792 4609 100 950 185 3885 466 . . . 809 . . Parts Sabotaged . | . . . . . . . . . . . . . . . . . . . Parts Stolen . | . . . . . . . . . . . . . . . . . . . Parts Stripped . | . . . . . . . . . . . . . . . . . . . Power Chain Reactions 11 | . . 2 . . 1 2 1 1 . . . 2 . . . 2 . . Missiles Intercepted . | . . . . . . . . . . . . . . . . . . . Alert | -11 -10 -9 -9 -8 -7 -6 -5 -4 -4 -4 -4 -4 -4 -4 -3 -2 -1 -1 ------- Run | Scr Mat Mat Sto Mat Fac Fac Fac Fac Gar Fac Ext Cet Arc Hub Res Res Acc Com Peak Influence 1237 | . 146 520 504 454 222 386 1237 712 985 672 746 844 462 622 727 1235 949 755 Initial 658 | . . 61 214 185 76 108 55 605 443 516 233 350 257 161 326 321 658 607 Average 456 | . 86 326 332 344 98 181 451 619 783 530 471 632 397 277 513 800 737 685 Maximum Alert Level 4 | . . 2 2 2 1 1 4 3 3 2 3 3 2 2 3 4 3 3 Low Security (%) 20 | . 100 15 15 19 92 61 37 . . . . . . 18 . . . . Level 1 22 | . . 58 35 55 7 38 7 . . . 29 8 42 77 21 14 . . Level 2 38 | . . 26 48 25 . . 36 96 21 100 67 45 57 4 74 29 35 59 Level 3 14 | . . . . . . . 13 3 78 . 2 45 . . 3 39 64 40 Level 4 2 | . . . . . . . 5 . . . . . . . . 16 . . Level 5 . | . . . . . . . . . . . . . . . . . . . High Security . | . . . . . . . . . . . . . . . . . . . Max Security . | . . . . . . . . . . . . . . . . . . . Squads Dispatched 66 | . 3 6 4 5 2 4 13 3 . 1 3 . . 2 7 11 . 2 Investigation 13 | . . 2 2 1 1 2 . 1 . . 2 . . . 2 . . . Extermination 10 | . . . . . 1 2 2 1 . 1 . . . . . 3 . . Reinforcement 26 | . 3 4 2 1 . . 5 1 . . 1 . . 1 5 2 . 1 Assault 6 | . . . . . . . 2 . . . . . . . . 3 . 1 Garrison 11 | . . . . 3 . . 4 . . . . . . 1 . 3 . . Intercept . | . . . . . . . . . . . . . . . . . . . Construction Impeded 5 | . . . . . . . 3 1 . . . . . 1 . . . . Haulers Reinforced 1 | . . . . . . . . . . . . . . . 1 . . . Stealth | -11 -10 -9 -9 -8 -7 -6 -5 -4 -4 -4 -4 -4 -4 -4 -3 -2 -1 -1 --------- Run | Scr Mat Mat Sto Mat Fac Fac Fac Fac Gar Fac Ext Cet Arc Hub Res Res Acc Com Distress Signals 28 | . . 3 4 . . . 3 . . . 3 2 . 2 4 3 3 1 Communications Jammed . | . . . . . . . . . . . . . . . . . . . Distress Signals . | . . . . . . . . . . . . . . . . . . . Times Spotted 460 | . 10 39 31 13 16 21 60 20 18 4 37 13 4 7 20 99 31 17 Peak Tracking Total 15 | . 6 7 5 6 3 3 7 8 4 2 8 5 2 2 7 15 13 14 Tactical Retreats 42 | . . 4 2 . 3 . 6 2 4 . 1 . . . . 12 6 2 Traps | -11 -10 -9 -9 -8 -7 -6 -5 -4 -4 -4 -4 -4 -4 -4 -3 -2 -1 -1 ------- Run | Scr Mat Mat Sto Mat Fac Fac Fac Fac Gar Fac Ext Cet Arc Hub Res Res Acc Com Traps Triggered 18 | . 1 . 6 . . . 1 . 5 . 1 . . . 1 . 1 2 Indirectly . | . . . . . . . . . . . . . . . . . . . Trap Hack Attempts . | . . . . . . . . . . . . . . . . . . . Triggered . | . . . . . . . . . . . . . . . . . . . Disarmed 6 | . . . . . . . . . . . . . . . . 6 . . Reprogrammed . | . . . . . . . . . . . . . . . . . . . Reused . | . . . . . . . . . . . . . . . . . . . Traps Extracted . | . . . . . . . . . . . . . . . . . . . Installed . | . . . . . . . . . . . . . . . . . . . Triggered 2 | . . 1 . . 1 . . . . . . . . . . . . . Machines | -11 -10 -9 -9 -8 -7 -6 -5 -4 -4 -4 -4 -4 -4 -4 -3 -2 -1 -1 ---------- Run | Scr Mat Mat Sto Mat Fac Fac Fac Fac Gar Fac Ext Cet Arc Hub Res Res Acc Com Machines Disabled 44 | . 1 3 6 1 . 1 16 . . 1 . . 1 8 2 4 . . Max in Single Turn 9 | . 1 1 2 1 . 1 9 . . 1 . . 1 5 1 2 . . Garrison Access 3 | . . . . . . . 1 . . . . . . 1 1 . . . Network Hub 1 | . . . . . . . . . . . . . . 1 . . . . Machines Sabotaged . | . . . . . . . . . . . . . . . . . . . Garrisons Compromised . | . . . . . . . . . . . . . . . . . . . Overloaded Fab Kills . | . . . . . . . . . . . . . . . . . . . Fab Network Shutdowns . | . . . . . . . . . . . . . . . . . . . Hacking | -11 -10 -9 -9 -8 -7 -6 -5 -4 -4 -4 -4 -4 -4 -4 -3 -2 -1 -1 --------- Run | Scr Mat Mat Sto Mat Fac Fac Fac Fac Gar Fac Ext Cet Arc Hub Res Res Acc Com Machines Accessed 73 | . 3 9 13 3 1 6 3 3 . 2 14 . . 5 2 3 5 1 Terminals 61 | . 3 8 12 3 1 4 1 2 . 1 12 . . 4 1 3 5 1 Fabricators . | . . . . . . . . . . . . . . . . . . . Repair Stations 2 | . . . 1 . . . . . . . 1 . . . . . . . Recycling Units 4 | . . 1 . . . 1 1 . . . 1 . . . . . . . Scanalyzers . | . . . . . . . . . . . . . . . . . . . Garrison Access 6 | . . . . . . 1 1 1 . 1 . . . 1 1 . . . Total Hacks 222 | . 10 29 34 11 3 15 8 7 . 7 44 . . 15 5 19 13 2 Successful 104 | . 5 17 22 8 3 4 2 3 . . 18 . . 8 1 8 4 1 Failed 118 | . 5 12 12 3 . 11 6 4 . 7 26 . . 7 4 11 9 1 Catastrophic 19 | . . 3 3 1 . 2 . 1 . . 5 . . 1 1 2 . . Database Lockouts . | . . . . . . . . . . . . . . . . . . . Manual 103 | . 10 21 8 6 . 9 3 5 . . 17 1 . 11 3 7 2 . Terminals 199 | . 10 28 31 11 3 12 4 6 . 2 41 . . 14 3 19 13 2 Fabricators . | . . . . . . . . . . . . . . . . . . . Repair Stations 5 | . . . 3 . . . . . . . 2 . . . . . . . Recycling Units 5 | . . 1 . . . 2 1 . . . 1 . . . . . . . Scanalyzers . | . . . . . . . . . . . . . . . . . . . Garrison Access 13 | . . . . . . 1 3 1 . 5 . . . 1 2 . . . Terminal Hacks 60 | . 2 9 14 4 3 4 . 1 . . 10 . . 3 . 6 3 1 Record 7 | . . 2 . . . 1 . . . . . . . 1 . 2 . 1 Robot Schematic 1 | . . . 1 . . . . . . . . . . . . . . . Robot Analysis 6 | . 2 3 . . 1 . . . . . . . . . . . . . Prototype ID Bank 3 | . . 1 1 . . . . . . . 1 . . . . . . . Open Door 15 | . . . 5 . . . . . . . 7 . . . . . 3 . Level Access Points 1 | . . . . . . . . . . . . . . 1 . . . . Branch Access Points 2 | . . 1 . . . . . . . . . . . . . 1 . . Terminal Index 4 | . . 1 1 . . 1 . 1 . . . . . . . . . . Alert Level 7 | . . . 2 1 . 1 . . . . 1 . . 1 . 1 . . Unreport Threat 7 | . . 1 2 2 . 1 . . . . 1 . . . . . . . Locate Traps 2 | . . . 1 . . . . . . . . . . . . 1 . . Disarm Traps 1 | . . . . . . . . . . . . . . . . 1 . . Recall Reinforcements 1 | . . . . 1 . . . . . . . . . . . . . . Hauler Manifests 1 | . . . . . 1 . . . . . . . . . . . . . Zone Layout 2 | . . . 1 . 1 . . . . . . . . . . . . . Fabricator Hacks . | . . . . . . . . . . . . . . . . . . . Repair Station Hacks 4 | . . . 2 . . . . . . . 2 . . . . . . . Scan Component 2 | . . . 1 . . . . . . . 1 . . . . . . . Repair 2 | . . . 1 . . . . . . . 1 . . . . . . . Recycling Unit Hacks . | . . . . . . . . . . . . . . . . . . . Scanalyzer . | . . . . . . . . . . . . . . . . . . . Garrison Access Hacks 4 | . . . . . . . 1 1 . . . . . 1 1 . . . Unlock Access 1 | . . . . . . . . 1 . . . . . . . . . . Seal Access 3 | . . . . . . . 1 . . . . . . 1 1 . . . Unauthorized Hacks 36 | . 3 8 6 4 . . 1 1 . . 6 . . 4 . 2 1 . Terminals 33 | . 3 7 5 4 . . 1 1 . . 5 . . 4 . 2 1 . Track 18 | . 2 4 3 2 . . 1 . . . 3 . . 2 . 1 . . Assimilate 1 | . . . . . . . . . . . . . . . . . 1 . Botnet 14 | . 1 3 2 2 . . . 1 . . 2 . . 2 . 1 . . Fabricators . | . . . . . . . . . . . . . . . . . . . Repair Stations 1 | . . . 1 . . . . . . . . . . . . . . . Mechanics 1 | . . . 1 . . . . . . . . . . . . . . . Recycling Units 2 | . . 1 . . . . . . . . 1 . . . . . . . Tunnel 2 | . . 1 . . . . . . . . 1 . . . . . . . Scanalyzers . | . . . . . . . . . . . . . . . . . . . Garrison Access . | . . . . . . . . . . . . . . . . . . . Data Cores Recovered 1 | . . . . . 1 . . . . . . . . . . . . . Used 1 | . . . . . 1 . . . . . . . . . . . . . Hacking Detections 52 | . 3 7 7 2 1 6 3 2 . 2 7 1 . 4 1 2 3 1 Full Trace Events 6 | . . 1 1 . . 2 . 1 . . 1 . . . . . . . Feedback Events 1 | . . . . . . 1 . . . . . . . . . . . . Corruption 1 | . . . . . . 1 . . . . . . . . . . . . Feedback Blocked . | . . . . . . . . . . . . . . . . . . . Robot Schematics Acquired 1 | . . . 1 . . . . . . . . . . . . . . . Robots Built . | . . . . . . . . . . . . . . . . . . . Matter . | . . . . . . . . . . . . . . . . . . . Time . | . . . . . . . . . . . . . . . . . . . Total Robot Build Rating . | . . . . . . . . . . . . . . . . . . . Part Schematics Acquired . | . . . . . . . . . . . . . . . . . . . Parts Built . | . . . . . . . . . . . . . . . . . . . Matter . | . . . . . . . . . . . . . . . . . . . Time . | . . . . . . . . . . . . . . . . . . . Total Part Build Rating . | . . . . . . . . . . . . . . . . . . . Parts Repaired 2 | . . . 1 . . . . . . . 1 . . . . . . . Time 77 | . . . 51 . . . . . . . 26 . . . . . . . Parts Recycled . | . . . . . . . . . . . . . . . . . . . Recycled Matter . | . . . . . . . . . . . . . . . . . . . Retrieved Matter . | . . . . . . . . . . . . . . . . . . . Retrieved Components . | . . . . . . . . . . . . . . . . . . . Parts Scanalyzed . | . . . . . . . . . . . . . . . . . . . Part Schematics Acquired . | . . . . . . . . . . . . . . . . . . . Parts Damaged . | . . . . . . . . . . . . . . . . . . . Bothacking | -11 -10 -9 -9 -8 -7 -6 -5 -4 -4 -4 -4 -4 -4 -4 -3 -2 -1 -1 ------------ Run | Scr Mat Mat Sto Mat Fac Fac Fac Fac Gar Fac Ext Cet Arc Hub Res Res Acc Com Used RIF Installer . | . . . . . . . . . . . . . . . . . . . Robots Hacked . | . . . . . . . . . . . . . . . . . . . Non-combat . | . . . . . . . . . . . . . . . . . . . Combat . | . . . . . . . . . . . . . . . . . . . Robot Hacks Applied . | . . . . . . . . . . . . . . . . . . . Relay Couplers Released . | . . . . . . . . . . . . . . . . . . . Robots Rewired 6 | . . . . . . . . . . . 6 . . . . . . . Allies Hacked . | . . . . . . . . . . . . . . . . . . . Hacks Repelled . | . . . . . . . . . . . . . . . . . . . Allies | -11 -10 -9 -9 -8 -7 -6 -5 -4 -4 -4 -4 -4 -4 -4 -3 -2 -1 -1 -------- Run | Scr Mat Mat Sto Mat Fac Fac Fac Fac Gar Fac Ext Cet Arc Hub Res Res Acc Com Total Allies 32 | . . . 10 . . . . . . . 16 5 . . . . 1 . Largest Group 10 | . . . 10 9 1 . . . . . 10 6 5 4 1 . 1 . Highest-Rated Group 491 | . . . 88 80 8 . . . . . 386 491 350 304 87 . 44 . Highest-Rated Ally 156 | . . . 16 16 8 . . . . . 156 149 94 94 87 . 44 . Total Orders . | . . . . . . . . . . . . . . . . . . . Ally Attacks 311 | . . . 17 64 4 . . . . . 133 55 18 11 9 . . . Total Damage 7192 | . . . 162 604 33 . . . . . 3334 1750 730 301 278 . . . Kills 49 | . . . 4 11 . . . . . . 19 7 4 2 2 . . . Allies Corrupted 2 | . . . . . . . . . . . 2 . . . . . . . Allies Melted . | . . . . . . . . . . . . . . . . . . . Intel | -11 -10 -9 -9 -8 -7 -6 -5 -4 -4 -4 -4 -4 -4 -4 -3 -2 -1 -1 ------- Run | Scr Mat Mat Sto Mat Fac Fac Fac Fac Gar Fac Ext Cet Arc Hub Res Res Acc Com Robot Analysis Total 6 | . 2 3 . . 1 . . . . . . . . . . . . . Derelict Logs Recovered . | . . . . . . . . . . . . . . . . . . . Drone Launches . | . . . . . . . . . . . . . . . . . . . Drone Recoveries . | . . . . . . . . . . . . . . . . . . . Exploration | -11 -10 -9 -9 -8 -7 -6 -5 -4 -4 -4 -4 -4 -4 -4 -3 -2 -1 -1 ------------- Run | Scr Mat Mat Sto Mat Fac Fac Fac Fac Gar Fac Ext Cet Arc Hub Res Res Acc Com Turns Passed 13511 | . 286 1112 1651 364 776 1091 1587 578 944 519 1413 411 85 353 494 1319 264 264 Spaces Moved 6715 | 1 217 515 711 182 397 563 575 259 392 252 660 164 43 188 218 511 402 465 Core 726 | . . . . . . . 7 . . . . . . . . 40 366 313 Treads 5179 | . 1 498 711 182 397 563 346 57 392 252 660 164 43 188 218 471 36 . Legs 58 | 1 52 . . . . . 5 . . . . . . . . . . . Wheels 590 | . 164 17 . . . . 207 202 . . . . . . . . . . Hover 10 | . . . . . . . 10 . . . . . . . . . . . Flight 152 | . . . . . . . . . . . . . . . . . . 152 Fastest Speed 40 | 120 100 100 180 180 155 175 113 120 150 170 152 160 160 160 160 50 50 40 Average Speed 152 | 120 105 162 180 180 169 175 183 139 167 170 170 163 160 160 160 164 58 46 Slowest Speed 1450 | 120 160 180 180 180 180 175 1450 180 185 172 180 180 160 160 160 200 145 50 Overloaded Moves . | . . . . . . . . . . . . . . . . . . . Propulsion Burnouts . | . . . . . . . . . . . . . . . . . . . Robots Hopped . | . . . . . . . . . . . . . . . . . . . Cave-ins Triggered . | . . . . . . . . . . . . . . . . . . . Exploration Rate (%) 35 | 2 54 58 88 27 17 21 23 9 65 7 83 56 71 21 8 24 12 24 Regions Visited 18 Branch Regions 6 Pre-discovered Areas 2 | . . 1 . . . . . . . . 1 . . . . . . . Known Exits Taken 4 | . . 1 . . . 1 . 1 . . . . . 1 . . . . Unknown Exits Taken 13 | 1 1 . 1 1 1 . 1 . . 1 1 1 1 . 1 1 1 . Scrap Searched . | . . . . . . . . . . . . . . . . . . . Spaces Dug 26 | . . . 9 . . . 11 . . . . . . 2 . 4 . . Terrain Destroyed 572 | . . 20 79 9 4 25 187 11 11 5 1 33 4 175 . 8 . . Melee . | . . . . . . . . . . . . . . . . . . . Projectile 42 | . . . . . . . 1 5 11 5 1 3 4 4 . 8 . . AOE 530 | . . 20 79 9 4 25 186 6 . . . 30 . 171 . . . . Terrain Rammed . | . . . . . . . . . . . . . . . . . . . Walls Destroyed . | . . . . . . . . . . . . . . . . . . . Machines Disabled . | . . . . . . . . . . . . . . . . . . . Actions | -11 -10 -9 -9 -8 -7 -6 -5 -4 -4 -4 -4 -4 -4 -4 -3 -2 -1 -1 --------- Run | Scr Mat Mat Sto Mat Fac Fac Fac Fac Gar Fac Ext Cet Arc Hub Res Res Acc Com Total 8720 | . 248 672 976 201 459 628 864 400 587 319 826 255 48 222 302 777 428 508 Wait 649 | . 10 30 151 2 5 9 51 61 93 22 16 9 1 8 45 89 18 29 Move 6696 | . 216 514 710 181 396 562 574 259 389 251 659 163 42 187 217 510 401 465 Hop . | . . . . . . . . . . . . . . . . . . . Pick Up 176 | . 2 23 16 2 6 11 14 22 15 11 14 17 . 4 3 16 . . Fast Attach 66 | . . 5 3 1 2 4 17 2 8 2 3 3 . . . 4 3 9 Attach 101 | . 1 3 1 2 1 2 25 6 14 3 6 4 . 1 4 28 . . Detach 7 | . . . . . . . 1 . 2 . . 3 . . . 1 . . Swap 100 | . 2 9 12 2 13 9 9 2 5 5 10 5 . 4 4 9 . . Drop 154 | . 2 18 20 2 13 9 19 1 9 13 14 17 . 6 1 7 1 2 Fire 673 | . 15 63 57 8 23 22 148 44 42 12 55 34 5 11 28 106 . . Melee . | . . . . . . . . . . . . . . . . . . . Ram 10 | . . . . . . . 2 1 . . . . . . . . 4 3 Kick 1 | . . . . . . . 1 . . . . . . . . . . . Crush 22 | . . 7 1 1 . . 3 . . . 1 . . 1 . 7 1 . Escape Stasis 15 | . . . 5 . . . . . 10 . . . . . . . . . Rewire 50 | . . . . . . . . 2 . . 48 . . . . . . . Trap . | . . . . . . . . . . . . . . . . . . . Miscellaneous . | . . . . . . . . . . . . . . . . . . . Route ------- -11/Scrapyard -10/Materials (discovered 2 exits: *Mat x2) -9/Materials (discovered 5 exits: *Mat / *Min x2 / *Sto x2) -9/Storage (discovered 2 exits: *Mat / [Rec]) -8/Materials -7/Factory -6/Factory (discovered 2 exits: *Fac / *Low) -5/Factory (discovered 2 exits: *Fac / [*Upp]) -4/Factory -4/Garrison (discovered 3 exits: *Fac x3) -4/Factory -4/Extension (discovered 2 exits: *Res / *Cet) -4/Cetus (discovered 2 exits: *Res / [*Arc]) -4/Archives -4/Hub_04(d) (discovered 4 exits: *Res x4) -3/Research -2/Research (discovered 3 exits: *Acc / Qua x2) -1/Access -1/Command History --------- Turn | Location | Event 1 | -11/Scrapyard | Discovered new exit (range 0) 1 | -11/Scrapyard | Entered Materials 127 | -10/Materials | Discovered new exit (range 3) 259 | -10/Materials | Discovered new exit (range 3) 287 | -10/Materials | Entered another Materials area 287 | -9/Materials | Evolved 2 slots: Utility x1, Weapon x1 309 | -9/Materials | Build established: Mutant 423 | -9/Materials | Discovered new exit (range 9) 491 | -9/Materials | Identified exit to Mines 491 | -9/Materials | Identified exit to Storage 626 | -9/Materials | Build established: Gunner 809 | -9/Materials | Discovered new exit (range 16) 994 | -9/Materials | Build established: Tank 1118 | -9/Materials | Destroyed 7 combat bots 1399 | -9/Materials | Entered Storage 1538 | -9/Storage | Found Prototype Processor 1635 | -9/Storage | Build established: Scavenger-Mutant 1896 | -9/Storage | Discovered new exit (range 11) 2004 | -9/Storage | Discovered new exit (range 12) 2326 | -9/Storage | Build established: Mutant 2728 | -9/Storage | Repaired Adv. Beam Cannon 2846 | -9/Storage | Assisted by bots powering up and referring to "LRC-V3" 3050 | -9/Storage | Entered Materials 3050 | -8/Materials | Accompanied by 9 allies 3050 | -8/Materials | Evolved 2 slots: Utility x2 3113 | -8/Materials | Identified Exp. Targeting Computer 3122 | -8/Materials | Garrison activated, responded to threat 3407 | -8/Materials | Discovered new exit (range 3) 3414 | -8/Materials | Entered Factory 3414 | -7/Factory | Accompanied by 1 ally 3414 | -7/Factory | Evolved 2 slots: Propulsion x1, Utility x1 3716 | -7/Factory | Build established: Scavenger-Gunner 4078 | -7/Factory | Build established: Gunner 4162 | -7/Factory | Discovered new exit (range 16) 4190 | -7/Factory | Entered another Factory area 4190 | -6/Factory | Evolved 2 slots: Power x1, Utility x1 4443 | -6/Factory | Spotted B-75 Beast 4853 | -6/Factory | Discovered new exit (range 15) 4882 | -6/Factory | Identified exit to Lower Caves 4959 | -6/Factory | Build established: Mutant 5069 | -6/Factory | Discovered new exit (range 13) 5093 | -6/Factory | Identified exit to Factory 5281 | -6/Factory | Entered another Factory area 5281 | -5/Factory | Evolved 2 slots: Utility x2 5380 | -5/Factory | Discovered new exit (range 8) 5621 | -5/Factory | Spotted B-75 Beast 5862 | -5/Factory | Garrison activated, responded to threat 6055 | -5/Factory | Lost 6 parts (2n2u2w) 6234 | -5/Factory | Lost 5 parts (2n1u2w) 6314 | -5/Factory | Build established: Hauler-Mutant 6420 | -5/Factory | Lost 7 parts (2p2u3w) 6423 | -5/Factory | Core integrity fell below 50% 6470 | -5/Factory | System corruption reached 10% 6553 | -5/Factory | Garrison activated, responded to threat 6781 | -5/Factory | First assault squad dispatched 6824 | -5/Factory | Discovered new exit (range 15) 6868 | -5/Factory | Entered another Factory area 6868 | -4/Factory | Evolved 2 slots: Propulsion x1, Utility x1 6939 | -4/Factory | Build established: Scavenger-Mutant 7446 | -4/Factory | Identified exit to Garrison 7446 | -4/Factory | Entered Garrison 7500 | -4/Garrison | Triggered checkpoint 7545 | -4/Garrison | Build established: Scavenger-Gunner 7615 | -4/Garrison | Spotted B-86 Titan 7755 | -4/Garrison | Destroyed B-86 Titan 7785 | -4/Garrison | Lost 9 parts (2p2n2u3w) 7828 | -4/Garrison | Triggered checkpoint 8005 | -4/Garrison | Discovered new exit (range 15) 8043 | -4/Garrison | Attempted to access garrison exit controls, blocked by remote lockdown 8215 | -4/Garrison | Discovered new exit (range 13) 8239 | -4/Garrison | Attempted to access garrison exit controls, blocked by remote lockdown 8296 | -4/Garrison | Triggered checkpoint 8375 | -4/Garrison | Discovered new exit (range 10) 8390 | -4/Garrison | Entered Factory 8865 | -4/Factory | Discovered new exit (range 15) 8909 | -4/Factory | Entered Extension 8990 | -4/Extension | Rescued a captive Derelict 8991 | -4/Extension | Rescued a captive Derelict 9152 | -4/Extension | Rescued a captive Derelict 9153 | -4/Extension | Rescued a captive Derelict 9276 | -4/Extension | Rescued a captive Derelict 9277 | -4/Extension | Rescued a captive Derelict 9590 | -4/Extension | Build established: Scavenger-Mutant 9713 | -4/Extension | Spotted B-86 Titan 9734 | -4/Extension | Allies destroyed B-86 Titan 9737 | -4/Extension | Spotted B-86 Titan 9749 | -4/Extension | Destroyed B-86 Titan 9799 | -4/Extension | Found Hvy. Reflective Plating 9879 | -4/Extension | Rescued a captive Derelict 9911 | -4/Extension | Rescued a captive Derelict 9967 | -4/Extension | Found Hvy. Insulated Plating 9975 | -4/Extension | Rescued A7 10010 | -4/Extension | Build established: Scavenger-Gunner 10012 | -4/Extension | Rescued a captive Derelict 10241 | -4/Extension | Repaired Lrg. Storage Unit 10306 | -4/Extension | Discovered new exit (range 10) 10308 | -4/Extension | Discovered new exit (range 6) 10322 | -4/Extension | Entered Cetus 10322 | -4/Cetus | Accompanied by 3 allies (A7) 10327 | -4/Cetus | Acquired a Cetus Manufacturing Module code from A7 10349 | -4/Cetus | Spotted Cetus Guard 10349 | -4/Cetus | Spotted Cetus Guard 10355 | -4/Cetus | Allies destroyed Cetus Guard 10355 | -4/Cetus | Spotted Cetus Guard 10356 | -4/Cetus | Destroyed Cetus Guard 10356 | -4/Cetus | Spotted Cetus Guard 10362 | -4/Cetus | Destroyed Cetus Guard 10364 | -4/Cetus | Destroyed Cetus Guard 10470 | -4/Cetus | Started Cetus Manufacturing Module 10489 | -4/Cetus | Discovered new exit (range 15) 10495 | -4/Cetus | Manufactured an Enhanced Grunt 10520 | -4/Cetus | Manufactured an Enhanced Grunt 10525 | -4/Cetus | Spotted Cetus Guard 10525 | -4/Cetus | Spotted Cetus Guard 10527 | -4/Cetus | Spotted Cetus Guard 10527 | -4/Cetus | Spotted Cetus Guard 10532 | -4/Cetus | Destroyed Cetus Guard 10533 | -4/Cetus | Allies destroyed Cetus Guard 10542 | -4/Cetus | Allies destroyed Cetus Guard 10543 | -4/Cetus | Destroyed Cetus Guard 10545 | -4/Cetus | Manufactured an Enhanced Grunt 10570 | -4/Cetus | Manufactured an Enhanced Grunt 10595 | -4/Cetus | Manufactured an Enhanced Grunt 10601 | -4/Cetus | Destroyed A7 10616 | -4/Cetus | Found Prototype Protection 10617 | -4/Cetus | Identified Med. Regenerative Plating 10636 | -4/Cetus | Discovered new exit (range 15) 10667 | -4/Cetus | Met Revision 17 10733 | -4/Cetus | Entered Archives 10733 | -4/Archives | Accompanied by 5 allies 10785 | -4/Archives | Discovered new exit (range 15) 10818 | -4/Archives | Entered Hub_04(d) 10818 | -4/Hub_04(d) | Accompanied by 4 allies 10907 | -4/Hub_04(d) | Discovered new exit (range 3) 10929 | -4/Hub_04(d) | Found Quantum Capacitor 10931 | -4/Hub_04(d) | Found Quantum Capacitor 10944 | -4/Hub_04(d) | Found Quantum Capacitor 11007 | -4/Hub_04(d) | Garrison activated, responded to threat 11084 | -4/Hub_04(d) | Identified exit to Research 11155 | -4/Hub_04(d) | Network Hub disabled 11171 | -4/Hub_04(d) | Entered Research 11171 | -3/Research | Accompanied by 1 ally 11171 | -3/Research | Evolved 2 slots: Utility x2 11371 | -3/Research | Revision forces began assault on 0b10 11444 | -3/Research | Met up with Revision 17++ 11521 | -3/Research | Discovered new exit (range 15) 11665 | -3/Research | Entered another Research area 11665 | -2/Research | Evolved 2 slots: Utility x2 12257 | -2/Research | Garrison activated, responded to threat 12415 | -2/Research | First assault squad dispatched 12446 | -2/Research | Found Gamma Bomb Array 12510 | -2/Research | Destroyed 14 combat bots 12651 | -2/Research | Found Imp. Powered Armor 12653 | -2/Research | Found Imp. Powered Armor 12765 | -2/Research | Core integrity fell below 50% 12782 | -2/Research | Lost 10 parts (2p2n2u4w) 12786 | -2/Research | System corruption reached 10% 12858 | -2/Research | Spotted B-90 Cyclops 12867 | -2/Research | Identified exit to Quarantine 12962 | -2/Research | Core integrity fell below 20% 12979 | -2/Research | Discovered new exit (range 10) 12984 | -2/Research | Entered Access 12984 | -1/Access | Evolved 2 slots: Power x1, Utility x1 12993 | -1/Access | Lost 16 parts (1p4n10u1w) 13245 | -1/Access | Discovered new exit (range 7) 13248 | -1/Access | Entered Command 13262 | -1/Command | Lost 3 parts (2n1u) 13427 | -1/Command | Spotted B-99 Colossus 13459 | -1/Command | Core integrity fell below 50% 13498 | -1/Command | First assault squad dispatched 13500 | -1/Command | Spotted Alpha 7 13500 | -1/Command | Spotted Striker 13500 | -1/Command | Spotted Executioner 13500 | -1/Command | Spotted Executioner 13500 | -1/Command | Spotted Alpha 7 13500 | -1/Command | Spotted Striker 13500 | -1/Command | Spotted Executioner 13500 | -1/Command | Spotted Executioner 13502 | -1/Command | Core integrity fell below 20% 13503 | -1/Command | Lost 4 parts (1p2n1u) 13512 | -1/Command | Destroyed by Striker with Compact Linear Accelerator Last Messages --------------- 13473_ Slug penetrates Wall. 13491_ Penetrated by Slug. 13491_ Slug penetrates Wall. 13491_ Penetrated by Slug. 13491_ Slug penetrates Wall. 13495_ Penetrated by Slug. 13497_ System corrupted: Matter fused (-8). 13497_ Slug penetrates Wall. 13497_ Slug penetrates Recycling Unit. 13498_ ALERT: Significant disruption in Zone 2O, assault force dispatched. 13499_ Slug penetrates Wall. 13500_ Penetrated by Slug. 13501_ Slug penetrates Wall. 13504_ Slug penetrates H-88 Terminator. 13504_ Slug penetrates Wall. 13504_ Penetrated by Slug. 13504_ Broken Lrn. Terrain Scanner destroyed. 13504_ Penetrated by Slug. 13504_ Recycling Unit disabled. 13510_ Penetrated by Slug. Map ----- +----------------------------------------------------+ | | | | | ?????????????????????????????????????????????????? | | ?????????????????????????????????????????????????? | | ?????????????????????????????????????????????????? | | ?????????????????????????????????????????????????? | | ?????????????????????????????????????????????????? | | #####????????????????????????????????????????????? | | +????????????????????????????????????????????? | | #????????????????????????????????????????????? | | +????????????????????????????????????????????? | | #????????????????????????????????????????????? | | #????????????????????????????????????????????? | | #???####?????????????????????????????????????? | | #?? ????????????????????????????????#####?? | | + ????????????????????????????????# ##+ | | #""" ?????????????????????????????????+ | | #"R ?????????????????????????????????# | | #""" ??????????????????????????????????# | | #""" ??????????????????????????????????# | | # ???????????????????????????????????# | | # ???????????????????????????????????# | | ##+##############+#########+############ | | % | | | | @ | | k kk | | ###"#############/#+##################### | | #??????????# =] #???????????????# | | ++++#??????????# ] = #???????????????# | | ??????????# #???????????????# | | ??????????# #???????????????# | | ?????????# #????? " ##### | | #?????????# ! #??????"" | | ?????????# #????? " ##### | | #?????????# #????? ?????????# | | ?????????# #???????????????# | | #?????????# #???????????????# | | ?????????#] #???????????????# | | #?????????# #???????????????#+#### | | ?????????##############????????????????????? | | ???????????????????????????????????????????? | | ???????????????????????????????????????????? | | ?"""" ???????????????????????????????????????????? | | ?????????????????????????????????????????????????? | | ?????????????????????????????????????????????????? | | ?????????????????????????????????????????????????? | | ?????????????????????????????????????????????# | | ?????????????????????????????????????????????????? | | ?????????????????????????????????????????????????? | +----------------------------------------------------+ Best States ------------- Heat Dissipation 138 Coolant Potential 80 Energy Generation 39 Energy Capacity 560 Matter Stores 300 Matter Capacity 300 Sight Range 16 Terrain Scan Range 24 Terrain Scan Density 210 ECM Strength 3 EM Shielding 2 Armor Coverage 1500 Resistance: KI 20 Resistance: TH 25 Resistance: EM 30 Weapon Cycling 15 Evasion (%) 62 Targeting Accuracy 17 Target Analysis 6 Armor Integrity Analysis 33 Recoil Reduction 4 Offensive Hacking 14 Defensive Hacking 28 Item Schematics ----------------- None Robot Schematics ------------------ A-02 Transporter | -9/Storage | Hacked Fabricated ------------ Nothing Alien Tech Used ----------------- None Achievements -------------- None Challenges ------------ None Game ------ Seed CoilLayeredCompactor Manual? 0 Play Time 02:12:13 Cumulative 222.1 hours Start 2021.01.05 @ 10:11:26 End 2021.01.05 @ 17:33:54 Sessions 3 Manual Loads 0 Difficulty Rogue Special Mode None Game No. 204 Rogue 197 Adventurer 0 Explorer 7 Win Type - Total 5 Types 1/0/4/0/0/0/0/0/0 Lore% 69 Gallery% 90 Achievement% 69 Wizard Run 0 Options --------- ASCII 0 Keyboard 0 Movement Numpad Keybinds 0 Fullscreen 1 Font 18/X11 Map View 76x50 Tactical HUD 1 Map Filters NONE Filters NONE Steam 1 RUN: ac60081d-14be-4556-a615-9821da2929ef